bitfinex-derivatives/quotes_BTCF0:USTF0_20250313
["timestamp","ask_amount","ask_price","bid_price","bid_amount"]
[1741859194539,0.0589,83398.0,83387.0,0.1199323]
[1741859194739,0.1199198,83396.0,83394.0,0.1199222]
[1741859194948,0.1199203,83396.0,83394.0,0.1322392]
[1741859195141,0.1204908,83395.0,83394.0,0.1322392]
[1741859195450,0.1204908,83395.0,83394.0,0.14406447]
[1741859196246,0.1204908,83395.0,83394.0,0.1322392]
[1741859197046,0.1234908,83395.0,83394.0,0.13219816]
[1741859197445,0.1274908,83395.0,83394.0,0.13219816]
[1741859198049,0.1274908,83395.0,83394.0,0.19129816]
[1741859198945,0.1274908,83395.0,83394.0,0.20363049]
[1741859199538,0.00757,83395.0,83394.0,0.20363049]
[1741859200038,0.1274908,83395.0,83394.0,0.20363049]
[1741859201452,0.1274908,83395.0,83394.0,0.19135453]
[1741859202251,0.1274908,83395.0,83394.0,0.20371194]
[1741859202447,0.1274908,83395.0,83394.0,0.19135453]
[1741859203755,0.1,83400.0,83394.0,0.19135453]
[1741859203941,0.2199157,83400.0,83399.0,0.1199151]
[1741859204850,0.2199157,83400.0,83399.0,0.2400151]
[1741859205050,0.107,83400.0,83399.0,0.2400151]
[1741859205251,0.2269136,83400.0,83399.0,0.2400151]
[1741859205755,0.107,83400.0,83399.0,0.2400151]
[1741859206344,0.007,83400.0,83399.0,0.2500151]
[1741859206568,0.12812,83413.0,83399.0,0.2500151]
[1741859206569,0.0599442,83418.0,83411.0,0.1198978]
[1741859206855,0.12169549,83412.0,83411.0,0.1198978]
[1741859207650,0.18049549,83412.0,83411.0,0.1198978]
[1741859208261,0.18049549,83412.0,83411.0,0.2393978]
[1741859208560,0.23739549,83412.0,83411.0,0.25162472]
[1741859209662,0.2355964,83412.0,83411.0,0.25162472]
[1741859211658,0.2355964,83412.0,83411.0,0.2393978]
[1741859212158,0.1157,83412.0,83400.0,0.00878707]
[1741859212349,0.1199107,83402.0,83401.0,0.01219832]
[1741859212546,0.1199107,83402.0,83401.0,0.04]
[1741859212745,0.1199194,83396.0,83395.0,0.43133434]
[1741859213054,0.1199194,83396.0,83395.0,0.55125514]
[1741859213244,0.1199194,83396.0,83395.0,0.60825514]
[1741859213445,0.2376194,83396.0,83395.0,0.60825514]
[1741859213847,0.2376194,83396.0,83395.0,0.6587208]
[1741859215062,0.2376194,83396.0,83395.0,0.67101782]
[1741859216058,0.2376194,83396.0,83395.0,0.4194]
[1741859216354,0.119928,83390.0,83389.0,0.12010934]
[1741859216560,0.119928,83390.0,83389.0,0.05231595]
[1741859216757,0.119928,83390.0,83389.0,0.17224535]
[1741859217055,0.119928,83390.0,83389.0,0.05231595]
[1741859217252,0.1199438,83379.0,83366.0,0.42104]
[1741859217453,0.1199438,83379.0,83378.0,0.1338575]
[1741859217854,0.1199438,83379.0,83378.0,0.14674065]
[1741859218052,0.1199438,83379.0,83378.0,0.1345122]
[1741859218355,0.2989438,83379.0,83378.0,0.2544575]
[1741859219062,0.2989438,83379.0,83378.0,0.1345122]
[1741859219563,0.2989438,83379.0,83378.0,0.1955575]
[1741859219854,0.2989438,83379.0,83378.0,0.00179903]
[1741859220250,0.1199539,83372.0,83371.0,0.28612665]
[1741859221161,0.1199539,83372.0,83370.0,0.00017983]
[1741859221162,0.1196,83372.0,83370.0,0.00017983]
[1741859221569,0.2395539,83372.0,83371.0,0.01244348]
[1741859222148,0.2395539,83372.0,83370.0,0.00017983]
[1741859222149,0.1199553,83371.0,83370.0,0.00017983]
[1741859222560,0.2445553,83371.0,83370.0,0.00017983]
[1741859223658,0.3725953,83371.0,83370.0,0.00017983]
[1741859223852,0.3725953,83371.0,83370.0,0.05737983]
[1741859224262,0.3725953,83371.0,83370.0,0.00017983]
[1741859225355,0.119974,83358.0,83357.0,0.0572]
[1741859225551,0.119974,83358.0,83357.0,0.06952143]
[1741859225963,0.119974,83358.0,83357.0,0.18949693]
[1741859226163,0.241474,83358.0,83357.0,0.06952143]
[1741859226659,0.241474,83358.0,83357.0,0.07052143]
[1741859226863,0.25332357,83358.0,83357.0,0.01332143]
[1741859227059,0.25332357,83358.0,83357.0,0.001]
[1741859227367,0.241474,83358.0,83357.0,0.001]
[1741859228059,0.241474,83358.0,83349.0,0.00017995]
[1741859228060,0.1199856,83350.0,83349.0,0.00017995]
[1741859228260,0.1199856,83350.0,83349.0,0.13256688]
[1741859228567,0.2378841,83351.0,83350.0,0.1199856]
[1741859228766,0.2378841,83351.0,83350.0,0.18878553]
[1741859228955,0.2378841,83351.0,83350.0,0.24833721]
[1741859229458,0.1179,83351.0,83350.0,0.24833721]
[1741859229651,0.0599882,83357.0,83356.0,0.1199769]
[1741859229857,0.1184882,83357.0,83356.0,0.1199769]
[1741859230052,0.00017995,83358.0,83356.0,0.1199769]
[1741859230258,0.12015395,83358.0,83357.0,0.2378755]
[1741859230458,0.00017995,83358.0,83357.0,0.2378755]
[1741859230761,0.00017995,83358.0,83357.0,0.25049924]
[1741859230962,0.12015395,83358.0,83357.0,0.25049924]
[1741859231359,0.12015395,83358.0,83357.0,0.1179]
[1741859231964,0.23885395,83358.0,83357.0,0.1179]
[1741859232564,0.23985395,83358.0,83357.0,0.0595]
[1741859233470,0.23985395,83358.0,83357.0,0.1794755]
[1741859234469,0.17965395,83358.0,83357.0,0.1794755]
[1741859236471,0.05967995,83358.0,83357.0,0.1794755]
[1741859236668,0.00117995,83358.0,83357.0,0.1794755]
[1741859237068,0.12115395,83358.0,83357.0,0.1794755]
[1741859238163,0.12115395,83358.0,83357.0,0.2356755]
[1741859238373,0.00117995,83358.0,83357.0,0.2356755]
[1741859238568,0.12115395,83358.0,83357.0,0.2356755]
[1741859238770,0.00117995,83358.0,83357.0,0.2356755]
[1741859239175,0.12115395,83358.0,83357.0,0.2356755]
[1741859239483,0.00117995,83358.0,83357.0,0.24826699]
[1741859239873,0.12115395,83358.0,83357.0,0.26847176]
[1741859240473,0.12115395,83358.0,83357.0,0.24826699]
[1741859241981,0.06017995,83358.0,83357.0,0.24826699]
[1741859242183,0.00117995,83358.0,83357.0,0.24826699]
[1741859243279,0.12115395,83358.0,83357.0,0.24826699]
[1741859244178,0.00117995,83358.0,83357.0,0.24826699]
[1741859244373,0.00117995,83358.0,83357.0,0.24822866]
[1741859244774,0.00117995,83358.0,83357.0,0.25822866]
[1741859245682,0.00099994,83358.0,83357.0,0.28822866]
[1741859246176,0.00099994,83358.0,83357.0,0.25822866]
[1741859246386,0.00099994,83358.0,83357.0,0.27822866]
[1741859247077,0.00099994,83358.0,83357.0,0.28222866]
[1741859247680,0.00017995,83366.0,83365.0,0.119964]
[1741859247881,0.00179968,83390.0,83365.0,0.37255316]
[1741859248079,0.1799112,83384.0,83383.0,0.0599671]
[1741859248274,0.1799112,83384.0,83383.0,0.07252026]
[1741859248674,0.2999112,83384.0,83383.0,0.19492026]
[1741859249087,0.2999112,83384.0,83383.0,0.13495316]
[1741859249383,0.2999112,83384.0,83383.0,0.25489126]
[1741859250574,0.00179968,83390.0,83389.0,0.1199294]
[1741859250775,0.00179968,83390.0,83389.0,0.13248256]
[1741859251083,0.18142768,83390.0,83389.0,0.25408256]
[1741859251283,0.24402768,83390.0,83389.0,0.25408256]
[1741859252483,0.24402768,83390.0,83389.0,0.26639997]
[1741859252786,0.24402768,83390.0,83389.0,0.25408256]
[1741859254376,0.24402768,83390.0,83389.0,0.01255316]
[1741859254575,0.1199338,83386.0,83385.0,0.1801346]
[1741859254778,0.1199338,83386.0,83385.0,0.19242137]
[1741859254974,0.3037338,83386.0,83385.0,0.13128677]
[1741859255183,0.2411338,83386.0,83385.0,0.13128677]
[1741859255576,0.2411338,83386.0,83385.0,0.13129683]
[1741859255781,0.2411338,83386.0,83385.0,0.25123203]
[1741859255982,0.2411338,83386.0,83385.0,0.13129683]
[1741859256187,0.2411338,83386.0,83385.0,0.119]
[1741859256485,0.2411338,83386.0,83385.0,0.0588]
[1741859256682,0.2411338,83386.0,83382.0,0.0604]
[1741859256886,0.1199381,83383.0,83382.0,0.0604]
[1741859257080,0.1199381,83383.0,83382.0,0.07262311]
[1741859257279,0.1835381,83383.0,83382.0,0.07262311]
[1741859257479,0.1835381,83383.0,83382.0,0.19256261]
[1741859257681,0.1835381,83383.0,83382.0,0.1803395]
[1741859258087,0.1199481,83376.0,83375.0,0.00017995]
[1741859258486,0.3053481,83376.0,83375.0,0.00017995]
[1741859259889,0.3053481,83376.0,83375.0,0.13231835]
[1741859260891,0.3053481,83376.0,83375.0,0.01236875]
[1741859261682,0.3053481,83376.0,83375.0,0.12012955]
[1741859261877,0.3053481,83376.0,83375.0,0.00017995]
[1741859262495,0.3053481,83376.0,83375.0,0.06237995]
[1741859263182,0.3053481,83376.0,83375.0,0.24152955]
[1741859263393,0.3053481,83376.0,83375.0,0.12157995]
[1741859263595,0.3053481,83376.0,83375.0,0.25371361]
[1741859263894,0.3053481,83376.0,83375.0,0.13376401]
[1741859264294,0.1830481,83376.0,83375.0,0.25371361]
[1741859264687,0.1830481,83376.0,83375.0,0.24152955]
[1741859264893,0.2419481,83376.0,83375.0,0.24152955]
[1741859266387,0.1830481,83376.0,83375.0,0.24152955]
[1741859267293,0.2413481,83376.0,83375.0,0.24152955]
[1741859267490,0.2413481,83376.0,83375.0,0.12157995]
[1741859267688,0.2413481,83376.0,83375.0,0.06237995]
[1741859267889,0.2413481,83376.0,83375.0,0.00017995]
[1741859268792,0.119964,83365.0,83363.0,0.00164]
[1741859268984,0.119964,83365.0,83356.0,0.01220771]
[1741859269297,0.1199726,83359.0,83355.0,0.1212]
[1741859269790,0.1199726,83359.0,83356.0,0.119976]
[1741859269991,0.1199726,83359.0,83358.0,0.40610065]
[1741859270296,0.00017995,83367.0,83366.0,0.1199625]
[1741859270499,0.00017995,83367.0,83366.0,0.1399625]
[1741859270689,0.00017995,83367.0,83366.0,0.2030625]
[1741859271092,0.00017995,83367.0,83366.0,0.3241625]
[1741859271494,0.12014105,83367.0,83366.0,0.3261625]
[1741859271698,0.00017995,83367.0,83366.0,0.3261625]
[1741859271884,0.12014105,83367.0,83366.0,0.3261625]
[1741859272086,0.00017995,83367.0,83366.0,0.3261625]
[1741859272790,0.00017995,83367.0,83366.0,0.3281625]
[1741859274107,0.12014105,83367.0,83366.0,0.3281625]
[1741859274602,0.00017995,83367.0,83366.0,0.3281625]
[1741859278695,0.00017995,83367.0,83366.0,0.54234967]
[1741859279591,0.1199356,83385.0,83384.0,0.1199366]
[1741859279999,0.2416356,83385.0,83384.0,0.1199366]
[1741859280406,0.2416356,83385.0,83384.0,0.13171939]
[1741859284206,0.2416356,83385.0,83384.0,0.01178279]
[1741859284407,0.2416356,83385.0,83383.0,0.1199371]
[1741859284601,0.2427032,83385.0,83384.0,0.1199366]
[1741859285902,0.3011032,83385.0,83384.0,0.1199366]
[1741859286104,0.059969,83383.0,83381.0,0.01189178]
[1741859286305,0.2366395,83382.0,83381.0,0.11994]
[1741859287107,0.1199453,83378.0,83377.0,0.2426149]
[1741859287310,0.1199453,83378.0,83377.0,0.1226726]
[1741859287509,0.1815453,83378.0,83377.0,0.0599726]
[1741859287704,0.1199467,83377.0,83376.0,0.33431452]
[1741859288102,0.2399467,83377.0,83376.0,0.33431452]
[1741859288409,0.2399467,83377.0,83376.0,0.34649234]
[1741859288810,0.2399467,83377.0,83376.0,0.13230517]
[1741859290698,0.2399467,83377.0,83376.0,0.01235777]
[1741859291417,0.2399467,83377.0,83376.0,0.13230587]
[1741859293017,0.2977467,83377.0,83376.0,0.13230587]
[1741859293415,0.2977467,83377.0,83376.0,0.19450587]
[1741859295616,0.1778,83377.0,83376.0,0.19450587]
[1741859295822,0.01194247,83395.0,83386.0,0.1199338]
[1741859295823,0.2476128,83387.0,83386.0,0.1199338]
[1741859296018,0.3651128,83387.0,83386.0,0.13212329]
[1741859296222,0.3651128,83387.0,83386.0,0.01218949]
[1741859298620,0.3651128,83387.0,83386.0,0.24932329]
[1741859299119,0.2374328,83387.0,83386.0,0.24932329]
[1741859299317,0.0571,83389.0,83388.0,0.1199309]
[1741859299519,0.1770294,83389.0,83388.0,0.13212039]
[1741859299821,0.1770294,83389.0,83388.0,0.15239076]
[1741859300122,0.1770294,83389.0,83388.0,0.27249076]
[1741859301309,0.0571,83389.0,83388.0,0.27249076]
[1741859301523,0.1199294,83389.0,83388.0,0.27248926]
[1741859301920,0.1755294,83389.0,83388.0,0.25221889]
[1741859303016,0.00179968,83390.0,83389.0,0.1199294]
[1741859303213,0.00179968,83390.0,83389.0,0.13211889]
[1741859303417,0.12764,83405.0,83390.0,0.0599633]
[1741859303617,0.1798673,83403.0,83402.0,0.1199093]
[1741859303828,0.1798673,83403.0,83402.0,0.13209879]
[1741859304132,0.1798673,83403.0,83402.0,0.15249627]
[1741859304312,0.1798673,83403.0,83402.0,0.26969627]
[1741859304514,0.3019673,83403.0,83402.0,0.26969627]
[1741859305117,0.3019673,83403.0,83402.0,0.28298984]
[1741859306513,0.3019673,83403.0,83402.0,0.26969627]
[1741859306712,0.3019673,83403.0,83402.0,0.27072429]
[1741859307118,0.3019673,83403.0,83402.0,0.28294379]
[1741859308215,0.3019673,83403.0,83402.0,0.29626155]
[1741859309727,0.3019673,83403.0,83402.0,0.28294379]
[1741859310112,0.1798586,83409.0,83408.0,0.1199021]
[1741859310315,0.1181,83410.0,83409.0,0.1199007]
[1741859310522,0.2380007,83410.0,83409.0,0.2091536]
[1741859310715,0.2380007,83410.0,83409.0,0.2686536]
[1741859311424,0.2380007,83410.0,83409.0,0.24825174]
[1741859312416,0.2380007,83410.0,83409.0,0.24824856]
[1741859314417,0.1772007,83410.0,83409.0,0.24824856]
[1741859315321,0.1772007,83410.0,83409.0,0.30364856]
[1741859315517,0.0573,83410.0,83409.0,0.30364856]
[1741859315826,0.12001829,83411.0,83410.0,0.1198992]
[1741859316017,0.12001829,83411.0,83410.0,0.1532731]
[1741859316219,0.12001829,83411.0,83410.0,0.24674706]
[1741859316420,0.17681829,83411.0,83410.0,0.24674706]
[1741859316621,0.12001829,83411.0,83410.0,0.26723782]
[1741859316925,0.12001829,83411.0,83410.0,0.24674706]
[1741859317129,0.23301829,83411.0,83410.0,0.24674706]
[1741859318517,0.00011949,83411.0,83410.0,0.24674706]
[1741859318714,0.12752,83429.0,83410.0,0.20733805]
[1741859318922,0.1751748,83428.0,83427.0,0.1198748]
[1741859319140,0.1198748,83428.0,83427.0,0.1198748]
[1741859319318,0.1198748,83428.0,83427.0,0.1809748]
[1741859319518,0.2327748,83428.0,83427.0,0.1809748]
[1741859319917,0.2327748,83428.0,83427.0,0.1198748]
[1741859320324,0.2327748,83428.0,83427.0,0.13176907]
[1741859320528,0.1751748,83428.0,83427.0,0.13176907]
[1741859320824,0.1751748,83428.0,83427.0,0.14446043]
[1741859321031,0.1751748,83428.0,83425.0,0.0599382]
[1741859321032,0.1198849,83420.0,83419.0,0.00017983]
[1741859321221,0.1198849,83420.0,83419.0,0.01291156]
[1741859321417,0.1199064,83405.0,83404.0,0.12752]
[1741859321619,0.1199064,83405.0,83404.0,0.06311226]
[1741859322023,0.1199064,83405.0,83404.0,0.04273541]
[1741859322024,0.2375064,83405.0,83404.0,0.04273541]
[1741859322329,0.2375064,83405.0,83404.0,0.16264331]
[1741859322526,0.2375064,83405.0,83404.0,0.04273541]
[1741859322930,0.2375064,83405.0,83404.0,0.16264331]
[1741859323331,0.2375064,83405.0,83404.0,0.17495089]
[1741859324925,0.1799064,83405.0,83404.0,0.17495089]
[1741859325124,0.1199064,83405.0,83404.0,0.17495089]
[1741859325323,0.00017983,83413.0,83410.0,0.0599489]
[1741859325519,0.00017983,83413.0,83412.0,0.1198964]
[1741859325723,0.12007473,83413.0,83412.0,0.01273541]
[1741859325917,0.12007473,83413.0,83412.0,0.13263181]
[1741859326523,0.29817473,83413.0,83412.0,0.13263181]
[1741859327228,0.29817473,83413.0,83412.0,0.01273541]
[1741859329626,0.31019949,83413.0,83412.0,0.01262117]
[1741859331221,0.29817473,83413.0,83412.0,0.01262117]
[1741859331525,0.29817473,83413.0,83412.0,0.13251757]
[1741859331726,0.29817473,83413.0,83412.0,0.15275834]
[1741859332032,0.29817473,83413.0,83412.0,0.03286194]
[1741859332228,0.29817473,83413.0,83412.0,0.01262117]
[1741859332428,0.29817473,83413.0,83412.0,0.03283136]
[1741859332931,0.29817473,83413.0,83412.0,0.15272776]
[1741859334026,0.12007473,83413.0,83412.0,0.15272776]
[1741859335128,0.00017983,83413.0,83412.0,0.16600923]
[1741859335429,0.12744,83424.0,83423.0,0.1198806]
[1741859335635,0.1798179,83428.0,83427.0,0.1198734]
[1741859335937,0.1798179,83428.0,83427.0,0.21015836]
[1741859336534,0.1798179,83428.0,83427.0,0.22343983]
[1741859337339,0.3013179,83428.0,83427.0,0.22343983]
[1741859337928,0.301304,83433.0,83432.0,0.1198676]
[1741859338124,0.368344,83433.0,83432.0,0.03416468]
[1741859338638,0.368344,83433.0,83432.0,0.10884615]
[1741859339139,0.368344,83433.0,83432.0,0.10886895]
[1741859339331,0.368344,83433.0,83432.0,0.22873655]
[1741859339539,0.2484739,83433.0,83432.0,0.22873655]
[1741859339733,0.0599339,83433.0,83432.0,0.22873655]
[1741859339934,0.1198619,83437.0,83436.0,0.1198619]
[1741859340240,0.1198619,83437.0,83436.0,0.15404938]
[1741859340738,0.1198619,83437.0,83436.0,0.16588751]
[1741859340940,0.1198619,83437.0,83436.0,0.17916898]
[1741859341126,0.1274,83439.0,83436.0,0.17916898]
[1741859341327,0.1761532,83444.0,83443.0,0.1198518]
[1741859341533,0.1761532,83444.0,83443.0,0.03418748]
[1741859341934,0.1198532,83444.0,83443.0,0.16732075]
[1741859342540,0.1761532,83444.0,83443.0,0.16732075]
[1741859343440,0.1198532,83444.0,83443.0,0.16732075]
[1741859343641,0.1795461,83448.0,83447.0,0.1198461]
[1741859343832,0.01214916,83458.0,83447.0,0.03418748]
[1741859344027,0.2401517,83457.0,83456.0,0.1198332]
[1741859344236,0.2998517,83457.0,83456.0,0.01314896]
[1741859345139,0.2998517,83457.0,83448.0,0.00017972]
[1741859345338,0.1198432,83449.0,83448.0,0.00017972]
[1741859345636,0.2472032,83449.0,83448.0,0.01329008]
[1741859345843,0.25918396,83449.0,83448.0,0.01329008]
[1741859346142,0.25918396,83449.0,83448.0,0.00017972]
[1741859346143,0.2472032,83449.0,83448.0,0.00017972]
[1741859346937,0.1198676,83432.0,83431.0,0.33432425]
[1741859347133,0.1198676,83432.0,83431.0,0.40843741]
[1741859347441,0.05993,83438.0,83435.0,0.1198619]
[1741859347442,0.1198626,83436.0,83435.0,0.1198619]
[1741859347630,0.1198626,83436.0,83435.0,0.20601728]
[1741859348234,0.1198626,83436.0,83435.0,0.21946588]
[1741859349339,0.0599276,83441.0,83435.0,0.21946588]
[1741859349533,0.1797852,83441.0,83440.0,0.1198561]
[1741859349737,0.1797852,83441.0,83440.0,0.13297647]
[1741859349939,0.1797852,83441.0,83440.0,0.01312037]
[1741859350132,0.1797852,83441.0,83440.0,0.02656897]
[1741859350545,0.1797852,83441.0,83440.0,0.14642507]
[1741859350941,0.1797852,83441.0,83440.0,0.13297647]
[1741859353646,0.1797852,83441.0,83440.0,0.01312037]
[1741859354049,0.0599276,83441.0,83440.0,0.19337647]
[1741859356048,0.0599276,83441.0,83440.0,0.07352037]
[1741859356249,0.1167276,83441.0,83440.0,0.07352037]
[1741859357038,0.1167276,83441.0,83440.0,0.20658312]
[1741859357346,0.1772537,83442.0,83441.0,0.1198547]
[1741859357544,0.1772537,83442.0,83441.0,0.19077208]
[1741859358246,0.1772537,83442.0,83441.0,0.07091738]
[1741859358438,0.1772537,83442.0,83441.0,0.01291738]
[1741859358845,0.1772537,83442.0,83441.0,0.07091738]
[1741859359652,0.1772537,83442.0,83441.0,0.19077208]
[1741859360250,0.1772537,83442.0,83441.0,0.12961738]
[1741859361254,0.2389537,83442.0,83441.0,0.12961738]
[1741859361849,0.3662737,83442.0,83441.0,0.01291738]
[1741859362044,0.0599122,83463.0,83443.0,0.1198518]
[1741859362244,0.35709226,83480.0,83476.0,0.0599011]
[1741859362449,0.1747,83479.0,83478.0,0.1198016]
[1741859362655,0.1747,83479.0,83478.0,0.15646415]
[1741859362842,0.35709226,83480.0,83478.0,0.30446233]
[1741859363045,0.35709226,83480.0,83479.0,0.18466083]
[1741859363451,0.35709226,83480.0,83479.0,0.24526083]
[1741859363648,0.35709226,83480.0,83479.0,0.37332352]
[1741859364041,0.33013064,83480.0,83479.0,0.37332352]
[1741859364242,0.67488718,83485.0,83484.0,0.119793]
[1741859364443,0.67488718,83485.0,83484.0,0.42465373]
[1741859364754,0.1,83500.0,83498.0,0.1197729]
[1741859364948,0.32138304,83512.0,83506.0,0.05988]
[1741859365143,0.32138304,83512.0,83511.0,0.1197542]
[1741859365344,0.32138304,83512.0,83511.0,0.42466879]
[1741859365551,0.0237,83530.0,83528.0,0.1197299]
[1741859365750,0.05839689,83535.0,83528.0,0.19464449]
[1741859365948,0.05839689,83535.0,83528.0,0.45464449]
[1741859366150,0.00179689,83535.0,83528.0,0.19464449]
[1741859366353,0.00179689,83535.0,83528.0,0.51690718]
[1741859366551,0.47098997,83529.0,83528.0,0.14717728]
[1741859366754,0.47098997,83529.0,83528.0,0.20757728]
[1741859367355,0.47098997,83529.0,83528.0,0.14717728]
[1741859367554,0.47098997,83529.0,83528.0,0.11460549]
[1741859367859,0.50126157,83529.0,83520.0,0.0001796]
[1741859368059,0.1796078,83522.0,83506.0,0.4413982]
[1741859368257,0.059867,83526.0,83495.0,0.4807497]
[1741859368258,0.1156,83521.0,83495.0,0.4807497]
[1741859368451,0.0598785,83510.0,83502.0,0.01629108]
[1741859368647,0.1197657,83503.0,83502.0,0.01629108]
[1741859368855,0.1197757,83496.0,83495.0,0.4823497]
[1741859369249,0.1197757,83496.0,83495.0,0.4824297]
[1741859369651,0.1797757,83496.0,83495.0,0.4807497]
[1741859370357,0.1797757,83496.0,83495.0,0.4817497]
[1741859370945,0.1797757,83496.0,83495.0,0.4807497]
[1741859371151,0.1797757,83496.0,83487.0,0.0001796]
[1741859371355,0.1197872,83488.0,83487.0,0.1199681]
[1741859371554,0.1197872,83488.0,83487.0,0.0001796]
[1741859371758,0.15826401,83491.0,83487.0,0.0001796]
[1741859371960,0.1197958,83482.0,83481.0,0.00179689]
[1741859372257,0.1198088,83473.0,83472.0,0.1790078]
[1741859372846,0.1198088,83473.0,83466.0,0.06001381]
[1741859373055,0.1198174,83467.0,83466.0,0.00010481]
[1741859375048,0.116,83472.0,83471.0,0.1198116]
[1741859375255,0.0001796,83478.0,83475.0,0.0599025]
[1741859375452,0.1199812,83478.0,83477.0,0.119803]
[1741859375760,0.119803,83477.0,83476.0,0.0558]
[1741859375963,0.119803,83477.0,83466.0,0.00010481]
[1741859375964,0.1198174,83467.0,83466.0,0.00010481]
[1741859376154,0.002,83467.0,83466.0,0.01216009]
[1741859376354,0.002,83467.0,83466.0,0.40972662]
[1741859376754,0.002,83467.0,83466.0,0.42819267]
[1741859377061,0.1218174,83467.0,83466.0,0.48929267]
[1741859377452,0.1218174,83467.0,83466.0,0.50546122]
[1741859377648,0.1218174,83467.0,83466.0,0.48929267]
[1741859377851,0.1218174,83467.0,83466.0,0.51183386]
[1741859378048,0.1198174,83467.0,83466.0,0.51183386]
[1741859378252,0.001,83477.0,83476.0,0.1198044]
[1741859378462,0.0001796,83478.0,83476.0,0.17009192]
[1741859378763,0.1199826,83478.0,83477.0,0.17009192]
[1741859378962,0.1199826,83478.0,83477.0,0.11138892]
[1741859379173,0.1777826,83478.0,83477.0,0.04669851]
[1741859379362,0.2950826,83478.0,83477.0,0.02415732]
[1741859379764,0.29320674,83478.0,83477.0,0.02415732]
[1741859379955,0.29320674,83478.0,83477.0,0.0136683]
[1741859380150,0.29420674,83478.0,83477.0,0.0136683]
[1741859380465,0.1198174,83467.0,83466.0,0.00010481]
[1741859380664,0.1198174,83467.0,83466.0,0.03544884]
[1741859381357,0.1198174,83467.0,83466.0,0.02831189]
[1741859381959,0.1198174,83467.0,83466.0,0.01369858]
[1741859382158,0.1198174,83467.0,83466.0,0.00010481]
[1741859383563,0.1198174,83467.0,83466.0,0.11992361]
[1741859383963,0.1198174,83467.0,83466.0,0.00010481]
[1741859384665,0.1198174,83467.0,83466.0,0.11992361]
[1741859385068,0.1198174,83467.0,83466.0,0.01306238]
[1741859385269,0.1198174,83467.0,83466.0,0.00010481]
[1741859385664,0.13208433,83467.0,83466.0,0.00010481]
[1741859385964,0.01226693,83467.0,83434.0,0.4194]
[1741859386165,0.119849,83445.0,83444.0,0.0578]
[1741859386363,0.119849,83445.0,83444.0,0.01306331]
[1741859386764,0.119849,83445.0,83444.0,0.13291371]
[1741859386975,0.1748652,83445.0,83444.0,0.14710926]
[1741859387272,0.1748652,83445.0,83444.0,0.14145886]
[1741859387571,0.0550162,83445.0,83444.0,0.26130926]
[1741859387779,0.0001162,83445.0,83444.0,0.26130926]
[1741859388369,0.1199652,83445.0,83444.0,0.26130926]
[1741859389269,0.1199652,83445.0,83444.0,0.26123465]
[1741859389870,0.1199652,83445.0,83444.0,0.2470391]
[1741859391271,0.1199652,83445.0,83444.0,0.24680851]
[1741859391780,0.0001162,83445.0,83444.0,0.24680851]
[1741859391973,0.1199652,83445.0,83444.0,0.26050078]
[1741859392374,0.1199652,83445.0,83444.0,0.14065038]
[1741859392569,0.1199652,83445.0,83444.0,0.12695811]
[1741859392978,0.1745652,83445.0,83444.0,0.24680851]
[1741859393367,0.1745652,83445.0,83444.0,0.14070637]
[1741859393571,0.1198604,83437.0,83436.0,0.00017971]
[1741859394277,0.1198604,83437.0,83436.0,0.17694161]
[1741859394480,0.1198604,83437.0,83436.0,0.23454161]
[1741859394680,0.1789604,83437.0,83436.0,0.23454161]
[1741859395175,0.1789604,83437.0,83436.0,0.11467971]
[1741859395370,0.17905962,83437.0,83436.0,0.11467971]
[1741859395571,0.17905962,83437.0,83436.0,0.00017971]
[1741859395772,0.113,83437.0,83417.0,0.00179804]
[1741859395981,0.1198863,83419.0,83418.0,0.1145]
[1741859396178,0.11998468,83419.0,83418.0,0.2343877]
[1741859396475,0.11998468,83419.0,83418.0,0.1145]
[1741859396872,0.00017971,83427.0,83418.0,0.1145]
[1741859397068,0.1198863,83419.0,83418.0,0.1145]
[1741859397380,0.1198863,83419.0,83418.0,0.2343877]
[1741859397576,0.1198863,83419.0,83418.0,0.2363877]
[1741859398074,0.0594,83420.0,83419.0,0.1198863]
[1741859398278,0.0594,83420.0,83419.0,0.2310863]
[1741859398479,0.0594,83420.0,83419.0,0.25155091]
[1741859398980,0.0594,83420.0,83419.0,0.25144671]
[1741859398981,0.1792849,83420.0,83419.0,0.25144671]
[1741859399176,0.1792849,83420.0,83419.0,0.2310863]
[1741859399877,0.1792849,83420.0,83419.0,0.25248604]
[1741859400284,0.0594,83420.0,83419.0,0.25348604]
[1741859400477,0.00017971,83427.0,83419.0,0.13359974]
[1741859400674,0.15345971,83427.0,83426.0,0.1198762]
[1741859401277,0.00017971,83427.0,83426.0,0.1198762]
[1741859401473,0.00017971,83427.0,83426.0,0.2326762]
[1741859401674,0.00017971,83427.0,83426.0,0.25328431]
[1741859401881,0.00017971,83427.0,83426.0,0.54328431]
[1741859402076,0.0548,83436.0,83435.0,0.1198633]
[1741859402275,0.0548,83436.0,83432.0,0.0599335]
[1741859402477,0.0548,83436.0,83435.0,0.1198633]
[1741859402680,0.1746619,83436.0,83435.0,0.1408184]
[1741859402979,0.0548,83436.0,83435.0,0.2551184]
[1741859403177,0.0574,83447.0,83440.0,0.0599275]
[1741859403178,0.15276,83441.0,83440.0,0.0599275]
[1741859403383,0.15276,83441.0,83440.0,0.1797828]
[1741859403584,0.2726147,83441.0,83440.0,0.1797828]
[1741859403785,0.2726147,83441.0,83440.0,0.08108023]
[1741859404176,0.2726147,83441.0,83440.0,0.02115273]
[1741859404575,0.1198619,83437.0,83436.0,0.1198608]
[1741859404779,0.1198619,83437.0,83436.0,0.25413584]
[1741859405281,0.15228,83445.0,83443.0,0.1198518]
[1741859405586,0.1198604,83439.0,83438.0,0.1198555]
[1741859405786,0.1198604,83439.0,83438.0,0.27352741]
[1741859406093,0.1198604,83439.0,83438.0,0.28732552]
[1741859406479,0.1757536,83442.0,83440.0,0.1198561]
[1741859406785,0.1757536,83442.0,83441.0,0.26466488]
[1741859406983,0.20783971,83444.0,83443.0,0.1198518]
[1741859407280,0.32769011,83444.0,83443.0,0.15366725]
[1741859407488,0.00017971,83444.0,83443.0,0.16746536]
[1741859407683,0.00017971,83444.0,83443.0,0.41787898]
[1741859407885,0.00017971,83444.0,83443.0,0.52907898]
[1741859408388,0.00017971,83444.0,83443.0,0.55133255]
[1741859408681,0.0542,83465.0,83464.0,0.1198217]
[1741859408887,0.3257402,83465.0,83464.0,0.24292838]
[1741859409089,0.3799402,83465.0,83464.0,0.12310668]
[1741859409477,0.1084,83465.0,83464.0,0.24292838]
[1741859409677,0.00179791,83466.0,83465.0,0.1198202]
[1741859409877,0.00179791,83466.0,83465.0,0.51400098]
[1741859410782,0.11998826,83473.0,83472.0,0.1198102]
[1741859410983,0.11998826,83473.0,83472.0,0.15389098]
[1741859411377,0.11998826,83473.0,83472.0,0.26499098]
[1741859411578,0.11998826,83473.0,83472.0,0.27899358]
[1741859411782,0.00017946,83473.0,83472.0,0.27899358]
[1741859411984,0.00017946,83473.0,83472.0,0.50899358]
[1741859412183,0.11998826,83473.0,83472.0,0.53146101]
[1741859412485,0.11998826,83473.0,83472.0,0.55146101]